fUST/lending_fUST_20241121
["ID","MTS","AMOUNT","RATE_DAILY","PERIOD"]
[342767008,1732122641166,-509.60000006,0.00021917,2]
[342767009,1732122641177,-234.26429791,0.00021917,2]
[342767010,1732122641187,-515.93106303,0.00021917,2]
[342767011,1732122641197,-500.0,0.00021917,2]
[342767012,1732122641207,-500.0,0.00022191,2]
[342767013,1732122641217,-495.62458627,0.00022191,2]
[342767014,1732122641228,-419.86,0.00022191,2]
[342767015,1732122641239,-500.0,0.00022191,2]
[342767016,1732122641250,-500.0,0.00022191,2]
[342767017,1732122641261,-500.0,0.00022191,2]
[342767018,1732122641271,-500.0,0.00022191,2]
[342767019,1732122641282,-254.65290627,0.00022191,2]
[342767020,1732122641388,-245.34709373,0.00022191,2]
[342767021,1732122641399,-505.13673602,0.00022191,2]
[342767022,1732122641409,-634.90712892,0.00022191,2]
[342767023,1732122641419,-500.0,0.00022191,2]
[342767024,1732122641429,-500.0,0.00022191,2]
[342767025,1732122641440,-500.0,0.00022191,2]
[342767026,1732122641453,-9444.67,0.00022191,2]
[342767027,1732122641472,-500.0,0.00022191,2]
[342767028,1732122641491,-500.0,0.00022191,2]
[342767029,1732122641514,-500.0,0.00022191,2]
[342767030,1732122641535,-500.0,0.00022191,2]
[342767031,1732122641559,-236.21774928,0.00022464,2]
[342767032,1732122641581,-176.613347,0.00022464,2]
[342767033,1732122641603,-442.26077236,0.00022464,2]
[342767034,1732122641627,-176.55396433,0.00022464,2]
[342767035,1732122641652,-500.0,0.00022465,2]
[342767036,1732122641675,-471.46,0.00022465,2]
[342767037,1732122641698,-500.0,0.00022465,2]
[342767038,1732122641723,-500.0,0.00022465,2]
[342767039,1732122641748,-500.0,0.00022465,2]
[342767040,1732122641770,-500.0,0.00022465,2]
[342767041,1732122641794,-500.0,0.00022465,2]
[342767042,1732122641819,-9444.67,0.00022465,2]
[342767043,1732122641842,-500.0,0.00022465,2]
[342767044,1732122641863,-500.0,0.00022465,2]
[342767045,1732122641880,-494.28546713,0.00022465,2]
[342767046,1732122641890,-500.0,0.00022739,2]
[342767047,1732122641900,-528.66,0.00022739,2]
[342767048,1732122641910,-504.3,0.00022739,2]
[342767049,1732122642046,-500.0,0.00022739,2]
[342767050,1732122642072,-367.49314649,0.00022739,2]
[342767051,1732122642094,-500.0,0.00022739,2]
[342767052,1732122642116,-9444.67,0.00022739,2]
[342767053,1732122642140,-253.06,0.00022739,2]
[342767054,1732122642163,-500.0,0.00022739,2]
[342767055,1732122642185,-356.31,0.00023013,2]
[342767056,1732122642209,-500.0,0.00023013,2]
[342767057,1732122642232,-500.0,0.00023013,2]
[342767058,1732122642256,-9444.67,0.00023013,2]
[342767059,1732122642278,-500.0,0.00023013,2]
[342767060,1732122642302,-500.0,0.00023287,2]
[342767061,1732122642327,-500.0,0.00023287,2]
[342767062,1732122642349,-500.0,0.00023287,2]
[342767063,1732122642371,-9444.67,0.00023287,2]
[342767064,1732122642397,-500.0,0.00023287,2]
[342767065,1732122642420,-342.60858328,0.00023511,2]
[342767066,1732122642441,-619.86186583,0.00023561,2]
[342767067,1732122642462,-500.0,0.00023561,2]
[342767068,1732122642483,-9444.67,0.00023561,2]
[342767069,1732122642504,-500.0,0.00023561,2]
[342767070,1732122642524,-264.12,0.00023819,5]
[342767071,1732122642545,-500.0,0.00023835,2]
[342767072,1732122642567,-9444.67,0.00023835,2]
[342767073,1732122642589,-500.0,0.00023835,2]
[342767074,1732122642611,-443.17,0.00024,2]
[342767075,1732122642632,-500.0,0.00024109,2]
[342767076,1732122642654,-9444.67,0.00024109,2]
[342767077,1732122642676,-500.0,0.00024109,2]
[342767078,1732122642698,-500.0,0.00024383,2]
[342767079,1732122642720,-9444.67,0.00024383,2]
[342767080,1732122642732,-500.0,0.00024383,2]
[342767081,1732122642742,-500.0,0.00024657,4]
[342767082,1732122642752,-500.0,0.00024657,2]
[342767083,1732122642762,-9444.67,0.00024657,2]
[342767084,1732122642772,-584.97841487,0.00024657,2]
[342767085,1732122642782,-1110.0,0.00024873,2]
[342767086,1732122642792,-2385.0,0.00024873,2]
[342767087,1732122642803,-500.0,0.00024931,2]
[342767088,1732122642813,-9444.67,0.00024931,2]
[342767089,1732122642823,-500.0,0.00025205,2]
[342767090,1732122642833,-9444.67,0.00025205,2]
[342767091,1732122642844,-342.60858328,0.00025205,2]
[342767092,1732122642853,-500.0,0.00025305,7]
[342767093,1732122642863,-500.0,0.00025479,2]
[342767094,1732122642874,-9444.67,0.00025479,2]
[342767096,1732122642884,-500.0,0.00025753,2]
[342767097,1732122642894,-9444.67,0.00025753,2]
[342767098,1732122642903,-500.0,0.00026027,6]
[342767099,1732122642913,-500.0,0.00026027,2]
[342767100,1732122642923,-9444.67,0.00026027,2]
[342767102,1732122642932,-500.0,0.00026301,2]
[342767104,1732122642943,-9444.67,0.00026301,2]
[342767105,1732122642954,-172.322816,0.00026532,2]
[342767106,1732122642965,-449.542,0.0002657,15]
[342767107,1732122642974,-500.0,0.00026575,2]
[342767108,1732122642985,-9444.67,0.00026575,2]
[342767109,1732122642995,-7879.52855468,0.00026714,10]
[342767110,1732122643005,-500.0,0.00026849,2]
[342767111,1732122643015,-9444.67,0.00026849,2]
[342767112,1732122643025,-500.0,0.00027123,2]
[342767113,1732122643035,-9444.67,0.00027123,2]
[342767114,1732122643045,-500.0,0.00027397,8]
[342767116,1732122643055,-500.0,0.00027397,2]
[342767117,1732122643066,-9444.67,0.00027397,2]
[342767118,1732122643076,-2632.774331,0.00027397,120]
[342767119,1732122643086,-268.8,0.00027671,2]
[342767120,1732122643096,-9444.67,0.00027671,2]
[342767121,1732122643106,-9444.67,0.00027945,2]
[342767123,1732122643116,-2000.0,0.00028,7]
[342767125,1732122643126,-9444.71608258,0.00028219,2]
[342767126,1732122643136,-4000.0,0.000285,7]
[342767127,1732122643146,-153.0,0.00028534,2]
[342767128,1732122643155,-153.0,0.00028534,2]
[342767129,1732122643165,-153.0,0.00028534,2]
[342767131,1732122643174,-153.0,0.00028534,2]
[342767133,1732122643183,-153.0,0.00028536,2]
[342767134,1732122643193,-260.72,0.000287,2]
[342767135,1732122643203,-500.0,0.000287,2]
[342767136,1732122643212,-501.0,0.000287,2]
[342767137,1732122643221,-500.0,0.00028736,10]
[342767139,1732122643231,-117103.78648848,0.000288,2]
[342767141,1732122643244,-81328.51578129,0.000288,2]
[342767142,1732122643257,-2312.13563876,0.000288,2]
[342767145,1732122643515,-500.0,0.00022191,2]
[342767146,1732122643530,-431.01,0.0002657,15]
[342767147,1732122643541,-582.02096749,0.000288,2]
[342767154,1732122646382,-18848.27396624,0.000288,2]
[342767155,1732122646395,-8997.3293,0.000288,2]
[342767156,1732122646442,-36032.70008145,0.000288,2]
[342767157,1732122646453,-696.88126329,0.000288,2]
[342767263,1732123728755,141664.5849298,0.000109,2]
[342767281,1732123832682,-559.370042,0.00018,2]
[342767282,1732123832694,-355.5,0.00018,2]
[342767283,1732123832816,-6100.754958,0.00018,2]
[342767284,1732123832827,-1280.04305093,0.000199,2]
[342767285,1732123832840,-17762.9372218,0.0001999,2]
[342767286,1732123832849,-484.4679289,0.0002,2]
[342767288,1732123832865,-12526.09534084,0.0002,2]
[342767290,1732123832880,-1527.22438011,0.0002,2]
[342767400,1732123846676,-678.55770755,0.0002,2]
[342767401,1732123846686,-10828.0750628,0.0002,2]
[342767402,1732123846695,-8127.06106903,0.00020377,2]
[342767403,1732123846705,-261.61763724,0.00021,2]
[342767404,1732123846715,-5499.68259927,0.00021,2]
[342767405,1732123846724,-235.77580747,0.00021,2]
[342767406,1732123846734,-1280.04305092,0.00021192,2]
[342767407,1732123846743,-228.84071799,0.000212,2]
[342767408,1732123846753,-1280.04305092,0.00022485,2]
[342767409,1732123846762,-500.0,0.00023287,2]
[342767410,1732123846771,-1280.04305092,0.00023777,2]
[342767411,1732123846781,-500.00000007,0.00024,2]
[342767412,1732123846790,-339.33587393,0.000244,2]
[342767413,1732123846800,-3000.0,0.00024506,2]
[342767414,1732123846810,-398.85,0.000246,2]
[342767415,1732123846819,-200.0,0.00024657,2]
[342767416,1732123846829,-200.0,0.00024657,2]
[342767417,1732123846839,-200.0,0.00024657,2]
[342767418,1732123846851,-200.0,0.00024657,2]
[342767419,1732123846860,-200.0,0.00024657,2]
[342767420,1732123846872,-200.0,0.00024657,2]
[342767421,1732123846881,-200.0,0.00024657,2]
[342767422,1732123846890,-200.0,0.00024657,2]
[342767423,1732123846899,-200.0,0.00024657,2]
[342767424,1732123846908,-200.0,0.00024657,2]
[342767425,1732123846919,-200.0,0.00024657,2]
[342767426,1732123846929,-261.58344889,0.00024769,2]
[342767427,1732123846938,-59421.6410125,0.000248,2]
[342767428,1732123846948,-200.0,0.00024931,2]
[342767429,1732123846958,-6719.51131949,0.0002499,10]
[342767430,1732123846971,-21306.75868051,0.0002499,10]
[342767431,1732123846980,-300.0,0.00025,2]
[342767432,1732123846989,-300.0,0.00025,2]
[342767433,1732123846998,-272.599999,0.00025,2]
[342767434,1732123847008,-5150.05102986,0.00025,2]
[342767435,1732123847017,-1880.48284569,0.00025,2]
[342767436,1732123847026,-171.1329862,0.00025066,2]
[342767437,1732123847036,-1280.04305092,0.00025069,2]
[342767438,1732123847046,-300.0,0.000251,2]
[342767439,1732123847055,-200.0,0.00025205,2]
[342767440,1732123847065,-200.0,0.00025479,2]
[342767441,1732123847074,-200.0,0.00025753,2]
[342767442,1732123847084,-528.86478108,0.00026,2]
[342767443,1732123847094,-276.28949891,0.00026027,2]
[342767444,1732123847104,-300.0,0.000261,2]
[342767445,1732123847112,-8261.7443597,0.0002611,2]
[342767446,1732123847122,-5643.35572271,0.0002611,2]
[342767447,1732123847131,-1280.04305092,0.00026361,2]
[342767448,1732123847141,-660.0,0.00026384,2]
[342767449,1732123847150,-7458.94652043,0.0002649,2]
[342767450,1732123847159,-431.6461,0.00026709,15]
[342767451,1732123847169,-9434.67138717,0.00026857,9]
[342767452,1732123847178,-2496.88201919,0.00027,2]
[342767453,1732123847187,-300.0,0.000271,2]
[342767454,1732123847197,-3200.0,0.00027395,2]
[342767455,1732123847206,-151.0,0.00027395,2]
[342767456,1732123847216,-277.1221549,0.00027397,2]
[342767544,1732125035127,-738.04546122,0.00018,2]
[342767545,1732125035137,-82.74922778,0.00022611,2]
[342767546,1732125035185,-877.55305,0.00022611,2]
[342767547,1732125035197,-1183.51323,0.00022611,2]
[342767616,1732125039746,-23.06587822,0.00022611,2]
[342767618,1732125039756,-211.296,0.00023827,5]
[342767619,1732125039766,-628.64172936,0.00024999,2]
[342767620,1732125039776,-300.0,0.00024999,2]
[342767621,1732125039785,-17681.39639241,0.00025,3]
[342767698,1732126232221,-368.99988,0.000247,2]
[342767702,1732126232286,-253.871551,0.000247,2]
[342767704,1732126232346,-7711.43934014,0.000247,2]
[342767705,1732126232356,-2319.42878379,0.000247,2]
[342767706,1732126232365,-48053.8016347,0.000247,3]
[342767707,1732126232375,-169.037,0.000248,8]
[342767708,1732126232384,-500.0,0.000248,2]
[342767713,1732126232393,-500.0,0.000248,2]
[342767716,1732126232501,-500.0,0.000248,2]
[342767718,1732126232510,-211.97398315,0.000248,2]
[342767720,1732126232519,-500.0,0.00024999,2]
[342767722,1732126232528,-255.97839756,0.00025,3]
[342767818,1732126238327,-322.97861926,0.000247,2]
[342767819,1732126238337,-14062.62521003,0.00025,3]
[342767820,1732126238350,-500.0,0.00025273,2]
[342767821,1732126238360,-373.97,0.000253,2]
[342767822,1732126238370,-500.0,0.00025547,2]
[342767823,1732126238379,-500.0,0.00025821,2]
[342767824,1732126238389,-500.0,0.00026095,2]
[342767825,1732126238398,-500.0,0.00026369,2]
[342767826,1732126238407,-828.0,0.00026379,15]
[342767827,1732126238417,-454.83654994,0.00026633,4]
[342767828,1732126238427,-238.8547169,0.00026643,2]
[342767829,1732126238437,-454.83654994,0.0002666,4]
[342767830,1732126238447,-454.83654994,0.00026899,4]
[342767831,1732126238456,-301.67120603,0.00026927,4]
[342767832,1732126238465,-195.05080352,0.00027,30]
[342767833,1732126238475,-299.0,0.000271,2]
[342767834,1732126238485,-454.83654994,0.00027166,4]
[342767835,1732126238495,-1000.0,0.00027397,2]
[342767836,1732126238504,-168.80680598,0.00027397,2]
[342767837,1732126238514,-511.08921657,0.00027397,2]
[342767838,1732126238523,-500.0,0.00027397,2]
[342767839,1732126238533,-500.0,0.00027397,2]
[342767840,1732126238542,-500.0,0.00027397,2]
[342767841,1732126238552,-500.0,0.00027397,2]
[342767842,1732126238563,-500.0,0.00027397,2]
[342767843,1732126238574,-500.0,0.00027397,2]
[342767844,1732126238584,-500.0,0.00027397,2]
[342767845,1732126238598,-573.26617154,0.00027397,2]
[342767846,1732126238608,-161.96708079,0.00027397,2]
[342767847,1732126238620,-1974.580748,0.00027397,120]
[342767848,1732126238631,-452.58191344,0.00027432,4]
[342767849,1732126238640,-211.76499603,0.00027499,2]
[342767850,1732126238650,-44344.7695284,0.000275,2]
[342767851,1732126238660,-151.0,0.000275,7]
[342767852,1732126238669,-4043.471,0.00027734,2]
[342767853,1732126238678,-837.94787352,0.000279,2]
[342767854,1732126238687,-31981.10449424,0.0002799,2]
[342767855,1732126238699,-7396.86045006,0.00028,30]
[342767856,1732126238709,-150.112233,0.00028,12]
[342767857,1732126238719,-3999.18073485,0.00028,2]
[342767886,1732126239960,-689.1986,0.00026709,15]
[342767887,1732126239971,-1282.81926515,0.00028,2]
[342767888,1732126239981,-9384.02,0.00028,25]
[342767889,1732126239991,-151.0,0.00028,7]
[342767890,1732126240000,-151.0,0.00028,7]
[342767891,1732126240010,-151.0,0.00028,7]
[342767892,1732126240020,-151.0,0.00028,7]
[342767893,1732126240029,-151.0,0.00028,7]
[342767894,1732126240039,-151.0,0.00028,7]
[342767895,1732126240049,-151.0,0.00028,7]
[342767896,1732126240058,-151.0,0.00028,7]
[342767897,1732126240068,-297.768232,0.00028,7]
[342767898,1732126240077,-151.0,0.00028,7]
[342767899,1732126240087,-151.0,0.00028,7]
[342767900,1732126240101,-515.882802,0.00028,7]
[342767901,1732126240111,-151.0,0.00028,7]
[342767902,1732126240121,-515.882802,0.00028,7]
[342767903,1732126240131,-151.0,0.00028,7]
[342767904,1732126240140,-300.0,0.000281,2]
[342767905,1732126240149,-150.112233,0.000281,13]
[342767906,1732126240159,-1333.55,0.000282,7]
[342767907,1732126240168,-150.112233,0.000282,18]
[342767908,1732126240178,-150.112233,0.000283,11]
[342767909,1732126240188,-153.0,0.00028379,2]
[342767910,1732126240198,-153.0,0.00028379,2]
[342767911,1732126240207,-153.0,0.00028379,2]
[342767912,1732126240217,-150.112233,0.000284,20]
[342767913,1732126240226,-6000.0,0.000285,7]
[342767914,1732126240235,-150.112233,0.000285,20]
[342767915,1732126240245,-150.112233,0.000286,11]
[342767916,1732126240255,-389.58479472,0.00028686,2]
[342767917,1732126240265,-150.112233,0.000287,11]
[342767918,1732126240275,-264.31263164,0.00028799,2]
[342767919,1732126240285,-3966.19524148,0.000288,2]
[342767938,1732126243105,-701.92909,0.00026709,15]
[342767939,1732126243117,-22477.238599,0.000288,2]
[342767940,1732126243129,-10084.66584483,0.000288,2]
[342767941,1732126243141,-8136.05575869,0.000288,2]
[342767942,1732126243150,-528.0,0.000288,2]
[342767943,1732126243159,-150.112233,0.000288,15]
[342767945,1732126243168,-150.112233,0.000289,17]
[342767947,1732126243178,-4434.30737594,0.00028929,2]
[342767962,1732126446913,161.704191,0.00013973,2]
[342768222,1732127341996,161.704191,0.00013973,2]
[342768293,1732127432251,-5403.48481456,0.00018,2]
[342768294,1732127432263,-745.40485,0.00018,2]
[342768311,1732127438495,-866.73533544,0.00018,2]
[342768312,1732127438505,-1007.80466456,0.0001999,2]
[342768362,1732127440263,-903.26161544,0.0001999,2]
[342768363,1732127440273,-248.0535565,0.00021948,2]
[342768364,1732127440283,-300.0,0.00022196,2]
[342768365,1732127440293,-823.68487306,0.00022196,2]
[342768366,1732127440305,-1364.31512694,0.00022196,2]
[342768367,1732127440315,-300.0,0.00022196,2]
[342768368,1732127440324,-24880.0,0.00022197,2]
[342768369,1732127440333,-600.18233154,0.00022899,2]
[342768370,1732127440343,-296.73424784,0.00022999,2]
[342768371,1732127440353,-4167.15538557,0.00023,2]
[342768372,1732127440362,-1159.71439189,0.00023,2]
[342768373,1732127440371,-353.64935658,0.00023,2]
[342768374,1732127440381,-13856.83725965,0.00023,10]
[342768387,1732127443367,-967.12969587,0.00023,10]
[342768423,1732128056597,161.704191,0.00013973,2]
[342768425,1732128162946,516.09,0.00010959,2]
[342768427,1732128173666,516.1,0.00010959,2]
[342768724,1732128472020,5000.0,0.00016,2]
[342768725,1732128486977,5000.0,0.00016,2]
[342768766,1732128636395,-152.75098743,0.00016166,2]
[342768767,1732128636408,-200.34342479,0.00016444,2]
[342768768,1732128636418,-208.36855582,0.00016472,2]
[342768769,1732128636527,-1144.87837518,0.00016472,2]
[342768770,1732128636537,-200.34342479,0.00016515,2]
[342768771,1732128636547,-250.0,0.00016614,2]
[342768772,1732128636557,-301.292792,0.00016798,2]
[342768773,1732128636566,-1974.5139037,0.00016999,2]
[342768774,1732128636576,-1586.2889042,0.000179,2]
[342768775,1732128636585,-500.0,0.00017994,2]
[342768776,1732128636595,-500.0,0.00017994,2]
[342768777,1732128636604,-500.0,0.00017994,2]
[342768778,1732128636614,-500.0,0.00017994,2]
[342768779,1732128636623,-359.31545345,0.00017994,2]
[342768780,1732128636635,-140.68454655,0.00017994,2]
[342768781,1732128636644,-500.0,0.00017994,2]
[342768782,1732128636658,-500.0,0.00017994,2]
[342768783,1732128636768,-500.0,0.00017994,2]
[342768784,1732128636779,-500.0,0.00017994,2]
[342768785,1732128636789,-500.0,0.00017994,2]
[342768786,1732128636799,-385.47077769,0.00017994,2]
[342768787,1732128636810,-114.52922231,0.00017994,2]
[342768788,1732128636820,-500.0,0.00017994,2]
[342768789,1732128636829,-299.03266236,0.00017994,2]
[342768790,1732128636841,-200.96733764,0.00017994,2]
[342768791,1732128636850,-500.0,0.00017994,2]
[342768792,1732128636861,-500.0,0.00017994,2]
[342768793,1732128636871,-288.2285805,0.00017994,2]
[342768794,1732128636880,-500.0,0.00017994,2]
[342768795,1732128636890,-115.67326386,0.00017994,2]
[342768828,1732128638894,-384.32673614,0.00017994,2]
[342768829,1732128638907,-500.0,0.00017994,2]
[342768830,1732128638917,-500.0,0.00017994,2]
[342768831,1732128638927,-383.11464734,0.00017994,2]
[342768832,1732128638936,-599.08837429,0.00017994,2]
[342768833,1732128638946,-456.23236091,0.00017994,2]
[342768834,1732128638955,-500.0,0.00017994,2]
[342768835,1732128638965,-500.0,0.00017994,2]
[342768836,1732128638974,-252.27867992,0.00017994,2]
[342768837,1732128638984,-500.0,0.00017994,2]
[342768838,1732128638994,-500.0,0.00017994,2]
[342768839,1732128639003,-26.29887665,0.00017994,2]
[342768840,1732128639016,-473.70112335,0.00017994,2]
[342768841,1732128639025,-500.0,0.00017994,2]
[342768842,1732128639036,-500.0,0.00017994,2]
[342768843,1732128639045,-102.59376489,0.00017994,2]
[342768844,1732128639057,-397.40623511,0.00017994,2]
[342768845,1732128639068,-500.0,0.00017994,2]
[342768846,1732128639086,-339.1657626,0.00017994,2]
[342768847,1732128639098,-500.0,0.00017994,2]
[342768848,1732128639108,-500.0,0.00017994,2]
[342768849,1732128639118,-500.0,0.00017994,2]
[342768850,1732128639128,-64.73800229,0.00017994,2]
[342768856,1732128640363,-435.26199771,0.00017994,2]
[342768857,1732128640373,-500.0,0.00017994,2]
[342768858,1732128640383,-500.0,0.00017994,2]
[342768859,1732128640396,-305.1857764,0.00017995,2]
[342768860,1732128640406,-300.0,0.00017995,2]
[342768861,1732128640416,-300.0,0.00017995,2]
[342768863,1732128640427,-53905.4522259,0.00017995,2]
[342768904,1732128646836,-1776.01383563,0.00017995,2]
[342768909,1732128895008,161.704191,0.00013973,2]
[342768953,1732129832945,-170.50473159,0.00017634,2]
[342768954,1732129832955,-326.21610044,0.0001765,2]
[342768989,1732129838912,-5184.23965434,0.0001765,2]
[342768990,1732129838922,-200.34342481,0.00017898,3]
[342768991,1732129838931,-300.0,0.00017998,2]
[342768992,1732129838941,-300.0,0.00017998,2]
[342768993,1732129838950,-10594.0,0.00017998,2]
[342768994,1732129838959,-7015.625,0.00018,2]
[342768995,1732129838969,-337.8669946,0.00018924,2]
[342768996,1732129838978,-240.0,0.00019638,2]
[342768997,1732129838988,-360.0,0.00019798,2]
[342768998,1732129838998,-4826.296432,0.00020117,2]
[342768999,1732129839007,-4826.296432,0.00020802,2]
[342769000,1732129839017,-1388.00279121,0.00021387,2]
[342769001,1732129839026,-203.45718426,0.00021487,2]
[342769002,1732129839035,-4826.296432,0.00021487,2]
[342769003,1732129839045,-183.08,0.00021907,3]
[342769004,1732129839054,-233.23204159,0.00021916,2]
[342769005,1732129839063,-542.56829415,0.00021916,2]
[342769006,1732129839073,-361.36429777,0.00021916,2]
[342769007,1732129839082,-217.35915121,0.00021916,2]
[342769008,1732129839092,-537.68508473,0.00021916,2]
[342769009,1732129839101,-172.5266183,0.00021916,2]
[342769010,1732129839111,-214.60428478,0.00021916,2]
[342769011,1732129839120,-192.35209734,0.00021916,2]
[342769012,1732129839130,-151.0,0.00021917,2]
[342769013,1732129839139,-151.0,0.00021917,2]
[342769014,1732129839148,-151.0,0.00021917,2]
[342769015,1732129839157,-151.0,0.00021917,2]
[342769016,1732129839166,-290.26584,0.00021917,2]
[342769017,1732129839176,-154.51893216,0.00021917,2]
[342769018,1732129839185,-151.0,0.00021917,2]
[342769019,1732129839194,-151.0,0.00021917,2]
[342769020,1732129839204,-177.66262691,0.00021917,2]
[342769021,1732129839213,-479.394522,0.00021917,2]
[342769022,1732129839222,-503.13356963,0.00021917,2]
[342769023,1732129839232,-522.03705276,0.00021917,2]
[342769024,1732129839241,-479.394522,0.00021917,2]
[342769025,1732129839251,-500.0,0.00021917,2]
[342769026,1732129839260,-151.0,0.00021917,2]
[342769027,1732129839270,-151.0,0.00021917,2]
[342769028,1732129839280,-500.0,0.00021917,2]
[342769029,1732129839289,-479.394522,0.00021917,2]
[342769030,1732129839298,-479.394522,0.00021917,2]
[342769031,1732129839307,-500.0,0.00021917,2]
[342769032,1732129839316,-500.0,0.00021917,2]
[342769033,1732129839328,-500.0,0.00021917,2]
[342769034,1732129839337,-151.0,0.00021917,2]
[342769035,1732129839346,-151.0,0.00021917,2]
[342769036,1732129839355,-500.0,0.00021917,2]
[342769037,1732129839363,-500.0,0.00021917,2]
[342769038,1732129839373,-500.0,0.00021917,2]
[342769039,1732129839382,-500.0,0.00021917,2]
[342769040,1732129839391,-500.0,0.00021917,2]
[342769041,1732129839401,-500.0,0.00021917,2]
[342769042,1732129839410,-507.9262674,0.00021917,2]
[342769043,1732129839419,-151.0,0.00021917,2]
[342769044,1732129839428,-151.0,0.00021917,2]
[342769045,1732129839438,-500.00595325,0.00021917,2]
[342769046,1732129839447,-151.0,0.00021917,2]
[342769047,1732129839456,-151.0,0.00021917,2]
[342769048,1732129839465,-151.0,0.00021917,2]
[342769049,1732129839475,-184.864801,0.00021917,2]
[342769050,1732129839484,-500.0,0.00021917,2]
[342769051,1732129839493,-500.0,0.00021917,2]
[342769052,1732129839503,-500.0,0.00021917,2]
[342769053,1732129839512,-151.0,0.00021917,2]
[342769054,1732129839521,-500.0,0.00021917,2]
[342769055,1732129839530,-500.0,0.00021917,2]
[342769056,1732129839539,-500.0,0.00021917,2]
[342769057,1732129839549,-500.0,0.00021917,2]
[342769058,1732129839558,-500.0,0.00021917,2]
[342769059,1732129839678,-151.0,0.00021917,2]
[342769060,1732129839688,-151.0,0.00021917,2]
[342769061,1732129839697,-151.0,0.00021917,2]
[342769062,1732129839711,-155.508223,0.00021917,2]
[342769063,1732129839720,-151.0,0.00021917,2]
[342769064,1732129839730,-151.0,0.00021917,2]
[342769065,1732129839740,-151.0,0.00021917,2]
[342769066,1732129839749,-500.0,0.00021917,2]
[342769067,1732129839759,-500.0,0.00021917,2]
[342769068,1732129839768,-500.0,0.00021917,2]
[342769069,1732129839777,-500.0,0.00021917,2]
[342769070,1732129839789,-500.0,0.00021917,2]
[342769071,1732129839799,-151.0,0.00021917,2]
[342769072,1732129839808,-151.0,0.00021917,2]
[342769073,1732129839817,-151.0,0.00021917,2]
[342769074,1732129839831,-500.0,0.00021917,2]
[342769075,1732129839841,-166.621182,0.00021917,2]
[342769076,1732129839850,-405.21393485,0.00021917,2]
[342769077,1732129839859,-500.0,0.00021917,2]
[342769078,1732129839869,-521.03104245,0.00021917,2]
[342769079,1732129839878,-500.0,0.00021917,2]
[342769080,1732129839887,-500.0,0.00021917,2]
[342769081,1732129839896,-500.0,0.00021917,2]
[342769082,1732129839906,-500.0,0.00021917,2]
[342769083,1732129839916,-500.0,0.00021917,2]
[342769084,1732129839927,-505.13129211,0.00021917,2]
[342769085,1732129839937,-501.28107156,0.00021917,2]
[342769086,1732129839947,-500.0,0.00021917,2]
[342769087,1732129839959,-500.0,0.00021917,2]
[342769088,1732129839968,-500.0,0.00021917,2]
[342769089,1732129839978,-500.0,0.00021917,2]
[342769090,1732129839988,-500.0,0.00021917,2]
[342769091,1732129839998,-500.0,0.00021917,2]
[342769092,1732129840008,-500.0,0.00021917,2]
[342769093,1732129840018,-500.0,0.00021917,2]
[342769094,1732129840027,-500.0,0.00021917,2]
[342769095,1732129840037,-500.0,0.00021917,2]
[342769096,1732129840046,-500.0,0.00021917,2]
[342769097,1732129840055,-500.0,0.00021917,2]
[342769098,1732129840065,-500.0,0.00021917,2]